[Event "45th FIDE Olympiad 2024"]
[Site "Budapest"]
[Date "2024.09.16"]
[Round "6.53"]
[White "Sadorra, Julio Catalino"]
[Black "Martirosyan, Haik M."]
[Result "1-0"]
[ECO "E46"]
[WhiteElo "2542"]
[BlackElo "2667"]
[Annotator "TA"]
[PlyCount "125"]
[EventDate "2024.09.05"]
[EventType "team-tourn"]
[EventCountry "HUN"]
[SourceTitle "playchess.com"]
[Source "ChessBase"]
[SourceQuality "1"]
[WhiteTeam "Philippines"]
[BlackTeam "Armenia"]
[WhiteTeamCountry "PHI"]
[BlackTeamCountry "ARM"]
[TimeControl "40/5400+30:1800+30"]

{[%evp 62,125,210,224,217,229,218,221,269,207,306,222,282,264,250,166,161,133,485,462,600,603,603,595,907,943,1017,897,2059,2119,2082,1922,1452,1341,1383,1315,29952,1690,1607,2021,1737,1633,1563,1599,1261,560,29980,29981,29972,3116,29983,29984,29984,29966,29968,29969,29968,29969,29969,29972,29970,29972,29975,29971,29978,29978]} 1. d4 {[%emt 0:00:06]} Nf6 {[%emt 0:00:39]} 2. c4 {[%emt 0:00:19]} e6 {[%emt 0:00:06]} 3. Nc3 {[%emt 0:00:15]} Bb4 {[%emt 0:00:09]} 4. e3 {[%emt 0:00:06]} O-O {[%emt 0:00:34]} 5. Bd2 {[%emt 0:00:10]} c5 {[%emt 0:01:47]} 6. a3 {[%emt 0:01:13]} Bxc3 {[%emt 0:00:09]} 7. Bxc3 {[%emt 0:00:04]} Ne4 {[%emt 0:00:20]} 8. Ne2 {[%emt 0:00:31]} b6 {[%emt 0:00:36]} 9. d5 {[%emt 0:00:24]} Ba6 {[%emt 0:03:21]} 10. b3 {[%emt 0:01:19]} b5 {[%emt 0:01:46]} 11. Qc2 {[%emt 0:00:51]} exd5 {[%emt 0:00:48]} 12. cxd5 {[%emt 0:00:06]} Nxc3 {[%emt 0:00:04]} 13. Qxc3 {[%emt 0:00:07]} d6 {[%emt 0:02:02]} 14. Ng3 {[%emt 0:00:08]} g6 {[%emt 0:08:37]} 15. Be2 {[%emt 0:01:23]} Re8 {[%emt 0:01:45]} 16. Qd2 {[%emt 0:17:11]} Nd7 {[%emt 0:05:31]} 17. e4 {[%emt 0:03:35]} h5 {[%emt 0:05:43]} 18. h4 {[%emt 0:00:41]} c4 {[%emt 0:02:44]} 19. Qf4 {[%emt 0:11:18]} Re5 {[%emt 0:06:48]} 20. bxc4 {[%emt 0:05:23]} bxc4 {[%emt 0:00:38]} 21. O-O {[%emt 0:00:04]} Rc8 {[%emt 0:12:07]} 22. Rfc1 {[%emt 0:07:31]} Qe7 {[%emt 0:07:14]} 23. Rab1 {[%emt 0:09:43]} Nb6 {[%emt 0:04:14]} 24. Rb4 {[%emt 0:06:48]} Rc5 {[%emt 0:01:27]} 25. a4 {[%emt 0:08:06]} Bc8 {[%emt 0:03:42]} 26. Ra1 {[%emt 0:05:29]} c3 {[%emt 0:02:19]} 27. a5 {[%emt 0:00:12]} Nd7 {[%emt 0:00:31]} 28. a6 {[%emt 0:01:38]} c2 {[%emt 0:06:47]} 29. Rc1 {[%emt 0:01:09]} Nf6 {[%emt 0:03:12]} 30. Bd3 {[%emt 0:04:57]} Kg7 {[%emt 0:03:51]} 31. Rb2 {[%emt 0:04:33]} Rc3 {[%emt 0:00:41] [#]} (31... Nd7 $16 32. Rbxc2 (32. Rcxc2 Rxc2 33. Rxc2 Nc5 $18) 32... Rxc2 33. Rxc2 Nc5 34. Qe3) 32. Qd2 $1 $18 {[%emt 0:02:20]} (32. Bxc2 Qc7 $11) (32. Rcxc2 Rxd3 33. Rxc8 Rd1+ 34. Kh2 Qd7 $17) 32... Nxd5 {[%emt 0:01:11]} 33. Bxc2 {[%emt 0:02:56]} (33. exd5 Rxd3 34. Qxc2 (34. Nxh5+ $2 gxh5 35. Qxc2 Re1+ 36. Rxe1 Qxe1+ $19) 34... Bxa6 $17 (34... Rdxd5 $2 35. Qxc8 Rc5 36. Rxc5 $18)) 33... Rc5 {[%emt 0:06:17]} 34. exd5 {[%emt 0:00:05]} Bxa6 {[%emt 0:00:38]} 35. Rbb1 {[%emt 0:01:55]} Qxh4 {[%emt 0:01:02]} (35... Rcxd5 $142 36. Qf4 Ra5) 36. Bb3 {[%emt 0:00:53]} Rxc1+ {[%emt 0:00:51]} 37. Rxc1 {[%emt 0:00:05]} (37. Qxc1 $6 Bd3 $16) 37... Bb5 {[%emt 0:02:10]} 38. Qc3 {[%emt 0:01:44]} Qf4 {[%emt 0:02:35]} 39. Re1 {[%emt 0:01:16]} h4 $2 {[%emt 0:00:03][%mdl 8192]} (39... Kf8 $16 40. Rxe5 Qxe5 41. Qxe5 dxe5) 40. Ne4 $18 {[%emt 0:01:42]} Kh6 {[%emt 0:04:53]} 41. g3 {[%emt 0:10:47]} (41. Nxd6 Rxe1+ 42. Qxe1 Qxd6 $11) 41... hxg3 {[%emt 0:05:05]} 42. fxg3 {[%emt 0:00:04]} Qg4 {[%emt 0:01:37]} 43. Nxd6 {[%emt 0:00:16]} Rxe1+ {[%emt 0:00:56]} 44. Qxe1 {[%emt 0:00:03]} Qf3 {[%emt 0:00:12]} 45. Nxb5 {[%emt 0:00:52]} Qxb3 {[%emt 0:00:03]} 46. Qd2+ {[%emt 0:00:28]} Kg7 {[%emt 0:01:06]} 47. Nc3 {[%emt 0:00:16]} (47. Nxa7 Qxg3+ 48. Qg2 Qe1+ 49. Kh2 Qh4+ 50. Kg1 Qe1+ 51. Kh2 Qh4+ 52. Kg1 Qd4+ 53. Qf2 Qxd5 $11) 47... Kf8 {[%emt 0:07:43]} 48. Kg2 {[%emt 0:01:10]} a5 {[%emt 0:00:51]} 49. Ne4 {[%emt 0:03:51]} (49. d6 $142 Ke8 50. Nd5 Qa3 51. Qe2+ Kd7 52. Nb6+ Kc6 53. Qe8+ Kxb6 54. d7 (54. Qxf7 Qxd6 55. Qa2 Qc6+ 56. Kh2 Qe4 $11) 54... Qa2+ 55. Kh3) 49... Qb4 $18 {[%emt 0:02:41]} 50. Qh6+ {[%emt 0:01:46]} Ke8 {[%emt 0:01:10]} 51. Qh8+ {[%emt 0:00:48]} Kd7 {[%emt 0:00:03]} 52. Qe5 {[%emt 0:00:04]} f5 {[%emt 0:00:24]} 53. Nc3 {[%emt 0:07:23]} (53. Nf6+ $142 Kc8 54. Kh3) 53... a4 {[%emt 0:02:00]} 54. Qe6+ {[%emt 0:00:29]} Kd8 {[%emt 0:00:01]} 55. Qf6+ {[%emt 0:00:06]} (55. d6 $142 Qb7+ 56. Nd5 g5 57. Qg8+ (57. Qxf5 Qb2+ 58. Kh3 Qh8+ 59. Kg4 Qd4+ 60. Kxg5 a3 $18) 57... Kd7 58. Qg7+ Kxd6 59. Qxb7 Ke5 60. Nc3 (60. Qb5 Kd6 61. Nc3 f4 62. Qd5+ Ke7 63. Qc6 Kf8 64. Nd5 f3+ 65. Kh2 g4)) 55... Kd7 {[%emt 0:00:52]} 56. Qc6+ {[%emt 0:00:14]} Ke7 {[%emt 0:00:37]} 57. d6+ {[%emt 0:03:15]} ({Weaker is} 57. Nxa4 Qd2+ 58. Kf3 Qd3+ 59. Kf2 Qd2+ 60. Kg1 Qe1+ 61. Kg2 Qd2+ 62. Kf1 Qd1+ 63. Kf2 Qd2+ 64. Kf1 Qd1+ 65. Kf2 Qd2+ $11) 57... Qxd6 {[%emt 0:00:36]} 58. Nd5+ {[%emt 0:00:01]} ({Not} 58. Qxa4 Qd2+ 59. Kh3 Qxc3 $11) 58... Ke6 {[%emt 0:00:09]} 59. Nf4+ {[%emt 0:00:01]} ({Worse is} 59. Qxa4 Qxd5+ 60. Kh2 Kf7 $11) 59... Ke7 {[%emt 0:00:16]} 60. Nxg6+ {[%emt 0:00:04]} Ke6 {[%emt 0:00:04]} 61. Nf4+ {[%emt 0:00:05]} Ke7 {[%emt 0:01:07]} 62. Qxa4 {[%emt 0:00:03]} Qc5 {[%emt 0:01:00]} 63. Qb4 {[%emt 0:01:28]} 1-0

[Event "45th FIDE Olympiad 2024"]
[Site "Budapest"]
[Date "2024.09.16"]
[Round "6.53"]
[White "Houssein, Mohamed Bilal"]
[Black "Eichab, Charles"]
[Result "0-1"]
[WhiteElo "1870"]
[BlackElo "2013"]
[PlyCount "150"]
[EventDate "2024.09.05"]
[EventType "team-tourn"]
[EventCountry "HUN"]
[WhiteTeam "Djibouti"]
[BlackTeam "Namibia"]
[WhiteTeamCountry "DJI"]
[BlackTeamCountry "NAM"]
[TimeControl "40/5400+30:1800+30"]

1. e4 c5 2. Nf3 g6 3. d4 cxd4 4. Nxd4 Nc6 5. c4 Bg7 6. Be3 Nf6 7. Nc3 O-O 8. Be2 d6 9. O-O Nxd4 10. Bxd4 Be6 11. Qd2 Qa5 12. Rfd1 Rfc8 13. b3 a6 14. f3 Nd7 15. Rac1 Bxd4+ 16. Qxd4 Qc5 17. Qf2 Qxf2+ 18. Kxf2 Rc7 19. a4 Nc5 20. Rb1 g5 21. g4 f6 22. a5 Rb8 23. Rdc1 b6 24. axb6 Rxb6 25. b4 Nd7 26. Rb2 Rbc6 27. Nd5 Bxd5 28. exd5 Rb6 29. Ke3 Ne5 30. Kd4 Rb8 31. Ra1 Rcb7 32. Ra4 Kf7 33. Kc3 Rb6 34. Raa2 Rc8 35. Kd4 Rcb8 36. Kc3 Rc8 37. Ra5 Rcb8 38. Ra4 h6 39. Rba2 Ke8 40. R2a3 Kd7 41. c5 dxc5 42. bxc5 Rb2 43. Bd1 Rb1 44. Bc2 R1b5 45. Bf5+ Kc7 46. Ra5 Rb4 47. Bd3 Nxd3 48. Kxd3 Rb3+ 49. Rxb3 Rxb3+ 50. Kc4 Rxf3 51. Rxa6 Rf4+ 52. Kb5 Rd4 53. Ra7+ Kd8 54. Ra8+ Kd7 55. c6+ Kc7 56. Kc5 Rd2 57. Ra7+ Kd8 58. Rd7+ Ke8 59. Kb6 Ra2 60. Kb7 Ra4 61. Kb8 Rxg4 62. Rb7 Rc4 63. c7 f5 64. c8=Q+ Rxc8+ 65. Kxc8 f4 66. Rb3 h5 67. h3 Kf7 68. Kd7 Kf6 69. Rd3 g4 70. hxg4 hxg4 71. Rd4 Ke5 72. Ra4 g3 73. Kxe7 g2 74. Ra1 Kxd5 75. Kf6 f3 {0-} 0-1

[Event "45th FIDE Olympiad 2024"]
[Site "Budapest"]
[Date "2024.09.16"]
[Round "6.54"]
[White "Sargsyan, Shant"]
[Black "Quizon, Daniel"]
[Result "1-0"]
[ECO "B38"]
[WhiteElo "2649"]
[BlackElo "2490"]
[Annotator "TA"]
[PlyCount "137"]
[EventDate "2024.09.05"]
[EventType "team-tourn"]
[EventCountry "HUN"]
[SourceTitle "playchess.com"]
[Source "ChessBase"]
[SourceQuality "1"]
[WhiteTeam "Armenia"]
[BlackTeam "Philippines"]
[WhiteTeamCountry "ARM"]
[BlackTeamCountry "PHI"]
[TimeControl "40/5400+30:1800+30"]

{[%evp 62,137,11,28,71,4,18,15,5,3,17,15,13,14,22,9,63,31,29,26,22,0,33,12,40,39,125,136,159,161,202,202,238,208,233,241,238,218,242,227,227,224,222,233,328,313,334,333,384,305,473,460,482,502,482,471,655,667,777,723,699,675,871,901,959,966,985,961,1013,1006,29987,29988,29988,29989,29989,29990,29990,29991]} 1. d4 {[%emt 0:01:13]} Nf6 {[%emt 0:00:16]} 2. c4 {[%emt 0:00:14]} g6 {[%emt 0:03:52]} 3. Nc3 {[%emt 0:00:11]} Bg7 {[%emt 0:00:34]} 4. e4 {[%emt 0:00:19]} d6 {[%emt 0:00:08]} 5. Be2 {[%emt 0:00:08]} c5 {[%emt 0:03:39]} 6. Nf3 {[%emt 0:01:33]} cxd4 {[%emt 0:00:39]} 7. Nxd4 {[%emt 0:00:07]} O-O {[%emt 0:00:24]} 8. O-O {[%emt 0:00:06]} Nc6 {[%emt 0:00:16]} 9. Be3 {[%emt 0:00:09]} Bd7 {[%emt 0:02:19]} 10. Nc2 {[%emt 0:00:36]} Rc8 {[%emt 0:01:13]} 11. Qd2 {[%emt 0:10:13] 11.Rc1 is becoming the main line. B38: Sicilian: Maroczy Bind with 5...Bg7 and 7...0-0.} a6 {[%emt 0:05:17]} 12. Rad1 $5 {[%emt 0:16:04][%mdl 4] Leaves trodden paths.} Ne5 {[%emt 0:11:13]} 13. c5 $146 {[%emt 0:02:57]} ({Predecessor:} 13. b3 b5 14. f4 Neg4 15. cxb5 Nxe3 16. Nxe3 axb5 17. e5 b4 18. exf6 bxc3 19. fxe7 Qxe7 {0-1 Kulpinski,P (2048)-Gunajew,R (2270) POL-ch blind 2010 (6.1)}) 13... Bc6 {[%emt 0:00:56]} 14. f3 {[%emt 0:01:17]} dxc5 {[%emt 0:03:45]} 15. Bxc5 {[%emt 0:01:30]} Qxd2 {[%emt 0:03:40]} 16. Rxd2 {[%emt 0:00:05]} Bh6 {[%emt 0:00:14]} 17. Be3 {[%emt 0:02:11]} Bxe3+ {[%emt 0:00:27]} 18. Nxe3 {[%emt 0:00:02]} g5 {[%emt 0:00:41]} 19. Nf5 {[%emt 0:09:44]} Rc7 {[%emt 0:16:17]} 20. h4 {[%emt 0:06:39]} gxh4 {[%emt 0:00:16]} 21. Nxh4 {[%emt 0:00:15]} Ng6 {[%emt 0:02:31]} 22. Nf5 {[%emt 0:07:39]} e6 {[%emt 0:00:17]} 23. Ne3 {[%emt 0:00:30]} h5 {[%emt 0:06:32]} 24. g3 {[%emt 0:00:21]} Kg7 {[%emt 0:00:19]} 25. Kf2 {[%emt 0:00:47]} Rh8 {[%emt 0:00:35]} 26. Rh1 {[%emt 0:01:26]} Rcc8 {[%emt 0:08:32]} 27. Nc4 {[%emt 0:04:03]} b5 {[%emt 0:01:19]} 28. Nd6 {[%emt 0:07:19]} Rc7 {[%emt 0:02:42]} 29. Rc1 {[%emt 0:02:08]} Bxe4 {[%emt 0:04:12]} 30. Ndxe4 {[%emt 0:03:18]} Nxe4+ {[%emt 0:00:36]} 31. fxe4 {[%emt 0:00:01]} b4 {[%emt 0:00:01]} 32. Bxa6 {[%emt 0:00:58]} Ra8 {[%emt 0:01:06] [#]} 33. Rd6 {[%emt 0:05:51]} (33. Bb5 $1 $16 {Strongly threatening Ne2.} Rb8 (33... bxc3 34. Rxc3 Rxc3 35. bxc3 $14) 34. Rdc2 (34. a4 bxa3 35. Rdc2 Rxc3 $11)) 33... Rca7 $11 {[%emt 0:03:01]} 34. Bc4 {[%emt 0:01:18]} bxc3 {[%emt 0:00:02]} 35. Rxc3 {[%emt 0:00:11]} Ne5 {[%emt 0:00:06]} 36. Bb3 {[%emt 0:01:11]} Kf6 {[%emt 0:00:31]} 37. Rd2 {[%emt 0:07:52]} Rb7 {[%emt 0:01:17]} 38. Ke3 {[%emt 0:03:18]} Ra5 {[%emt 0:00:01]} (38... Rg8 $11) 39. Rdc2 {[%emt 0:02:28]} Ng4+ {[%emt 0:04:54]} 40. Kf3 {[%emt 0:01:29]} Ne5+ {[%emt 0:00:15]} 41. Ke3 {[%emt 0:05:08]} Ng4+ {[%emt 0:00:02]} 42. Kd2 {[%emt 0:01:40]} Rd7+ {[%emt 0:05:04]} 43. Kc1 {[%emt 0:01:27]} Ne5 {[%emt 0:01:45]} ({Black should play} 43... Ke5 $14) 44. Rd2 $16 {[%emt 0:01:05]} Rb7 {[%emt 0:02:24]} 45. a3 {[%emt 0:00:41]} Ng6 {[%emt 0:12:26]} 46. Bd1 {[%emt 0:02:41]} h4 {[%emt 0:03:18]} 47. gxh4 {[%emt 0:00:31]} Nxh4 {[%emt 0:00:02]} 48. b4 {[%emt 0:00:30]} Ra8 {[%emt 0:05:23]} 49. Kb2 {[%emt 0:00:54]} ({But not} 49. Rf2+ $6 Ke5 50. Rc5+ Kxe4) 49... Ng6 {[%emt 0:00:17]} 50. Rc5 {[%emt 0:01:08]} Rab8 {[%emt 0:01:29]} 51. Bh5 {[%emt 0:03:17]} Nf4 {[%emt 0:02:40]} 52. Bf3 {[%emt 0:01:47]} Ra7 {[%emt 0:00:32]} (52... Rb5 $142 53. Rxb5 Rxb5) 53. e5+ $18 {[%emt 0:02:57]} Ke7 {[%emt 0:02:08]} 54. Rd4 {[%emt 0:00:41]} Ng6 {[%emt 0:02:48]} 55. Bh5 {[%emt 0:01:20]} Nh8 {[%emt 0:01:35]} (55... Nf8 $142 56. Rf4 Ng6 57. Bxg6 fxg6) 56. b5 $18 {[%emt 0:01:07]} f6 {[%emt 0:00:18]} 57. exf6+ {[%emt 0:01:02]} Kxf6 {[%emt 0:00:01]} 58. a4 {[%emt 0:00:12]} e5 {[%emt 0:04:16]} 59. Re4 {[%emt 0:01:37]} Re7 {[%emt 0:00:06]} 60. Kb3 {[%emt 0:00:29]} Kf5 {[%emt 0:00:15]} 61. Re1 {[%emt 0:01:25]} Kf4 {[%emt 0:00:14]} 62. a5 {[%emt 0:00:43]} e4 {[%emt 0:00:06]} 63. Rf1+ {[%emt 0:00:42]} Ke3 {[%emt 0:00:17]} 64. b6 {[%emt 0:00:16]} Kd4 {[%emt 0:00:22]} 65. Kb4 {[%emt 0:00:17]} e3 {[%emt 0:00:26]} 66. Rf4+ {[%emt 0:00:49]} Kd3 {[%emt 0:00:18]} 67. Rd5+ {[%emt 0:00:00]} Kc2 {[%emt 0:00:02]} 68. Rc4+ {[%emt 0:00:07]} Kb2 {[%emt 0:00:15]} 69. Rdc5 {[%emt 0:00:06]} 1-0

[Event "45th FIDE Olympiad 2024"]
[Site "Budapest"]
[Date "2024.09.16"]
[Round "6.54"]
[White "Schwarz, Bernhard"]
[Black "Omar, Aden Omar"]
[Result "1/2-1/2"]
[WhiteElo "1875"]
[BlackElo "1779"]
[PlyCount "82"]
[EventDate "2024.09.05"]
[EventType "team-tourn"]
[EventCountry "HUN"]
[WhiteTeam "Namibia"]
[BlackTeam "Djibouti"]
[WhiteTeamCountry "NAM"]
[BlackTeamCountry "DJI"]
[TimeControl "40/5400+30:1800+30"]

1. e4 e6 2. d4 d5 3. e5 c5 4. c3 Nc6 5. Nf3 Qb6 6. a3 c4 7. Nbd2 Bd7 8. Rb1 Qc7 9. Be2 f6 10. exf6 Nxf6 11. b3 b5 12. O-O Bd6 13. bxc4 bxc4 14. Re1 O-O 15. h3 e5 16. dxe5 Nxe5 17. Nd4 Bc5 18. N2f3 Rae8 19. Bf1 Nxf3+ 20. Nxf3 Bxf2+ 21. Kxf2 Ne4+ 22. Kg1 Nxc3 23. Qd4 Rxe1 24. Nxe1 Nxb1 25. Qxd5+ Kh8 26. Bxc4 Qg3 27. Nf3 Bxh3 28. Ng5 h6 29. Nxh3 Qe1+ 30. Kh2 Qxc1 31. Qd6 Qxa3 32. Qg6 Qe7 33. Bd3 Kg8 34. Qh7+ Kf7 35. Qg6+ Kg8 36. Qh7+ Kf7 37. Qg6+ Kg8 38. Bc4+ Kh8 39. Bd3 Kg8 40. Bc4+ Kh8 41. Bd3 Kg8 1/2-1/2

[Event "45th FIDE Olympiad 2024"]
[Site "Budapest"]
[Date "2024.09.16"]
[Round "6.55"]
[White "Bersamina, Paulo"]
[Black "Sargissian, Gabriel"]
[Result "1/2-1/2"]
[ECO "C56"]
[WhiteElo "2425"]
[BlackElo "2646"]
[Annotator "TA"]
[PlyCount "203"]
[EventDate "2024.09.05"]
[EventType "team-tourn"]
[EventCountry "HUN"]
[SourceTitle "playchess.com"]
[Source "ChessBase"]
[SourceQuality "1"]
[WhiteTeam "Philippines"]
[BlackTeam "Armenia"]
[WhiteTeamCountry "PHI"]
[BlackTeamCountry "ARM"]
[TimeControl "40/5400+30:1800+30"]

{[%evp 20,203,32,25,18,26,24,29,22,11,28,24,26,32,14,16,27,47,23,19,8,15,23,7,10,2,11,0,0,0,0,6,21,8,8,8,9,0,0,0,0,0,8,16,12,13,16,11,26,0,0,0,0,0,49,34,45,45,45,45,45,56,48,53,45,45,58,45,45,45,45,45,45,45,45,45,45,18,18,8,36,37,45,45,45,8,8,8,8,8,8,8,8,8,8,8,8,8,8,8,8,8,8,8,8,8,8,8,8,8,8,8,8,8,8,8,8,8,8,8,8,8,8,0,8,0,8,0,8,8,8,8,8,8,8,8,8,8,8,8,8,8,8,8,8,8,8,8,8,8,8,8,8,8,8,8,8,8,8,8,8,8,8,8,30,8,30,30,30,30,30,8,8,8,8,8,8,8,8,8,8,0,8,0,8,0]} 1. e4 {[%emt 0:00:30]} e5 {[%emt 0:00:13]} 2. Nf3 {[%emt 0:00:07]} Nc6 {[%emt 0:00:05]} 3. d4 {[%emt 0:00:21]} exd4 {[%emt 0:00:27]} 4. Bc4 {[%emt 0:00:06]} Nf6 {[%emt 0:01:58]} 5. e5 {[%emt 0:00:07]} d5 {[%emt 0:01:00]} 6. Bb5 {[%emt 0:00:06]} Ne4 {[%emt 0:00:34]} 7. Nxd4 {[%emt 0:00:07]} Bc5 {[%emt 0:01:48]} 8. Be3 {[%emt 0:00:43]} O-O {[%emt 0:03:25]} 9. Nxc6 {[%emt 0:01:50]} bxc6 {[%emt 0:01:41]} 10. Bxc5 {[%emt 0:00:06]} Nxc5 {[%emt 0:00:24]} 11. Bxc6 {[%emt 0:04:22]} Rb8 {[%emt 0:00:43]} 12. Qxd5 {[%emt 0:03:32]} Qe7 {[%emt 0:02:54][%cal Of8d8]} 13. O-O {[%emt 0:00:10]} Rxb2 {[%emt 0:01:42] White has an edge.} 14. Qd4 {[%emt 0:21:23]} Rxc2 {[%emt 0:17:17] [#] ...Ne6 is the strong threat.} 15. Nc3 {[%emt 0:06:37]} Ne6 {[%emt 0:02:35]} 16. Qd3 {[%emt 0:03:21]} Rb2 {[%emt 0:00:18]} 17. Qe3 {[%emt 0:05:55]} (17. Nd5 {keeps more tension.} Qc5 18. Rac1 Qa5 19. Rfd1) 17... Qc5 {[%emt 0:04:41]} 18. Qxc5 {[%emt 0:03:48]} Nxc5 {[%emt 0:00:15]} 19. Rab1 {[%emt 0:02:34]} Rc2 {[%emt 0:04:18]} 20. Nd5 {[%emt 0:05:43]} Be6 {[%emt 0:04:45]} 21. Rfd1 {[%emt 0:02:36]} g6 {[%emt 0:06:57]} 22. a3 {[%emt 0:07:15]} Kh8 {[%emt 0:07:29]} 23. Nb4 {[%emt 0:05:58]} Rc3 {[%emt 0:02:44]} 24. Rbc1 {[%emt 0:01:18]} Rxc1 {[%emt 0:00:16]} 25. Rxc1 {[%emt 0:00:02]} Rd8 {[%emt 0:01:32][%cal Oa7a5]} 26. Bf3 {[%emt 0:07:14]} Nb3 {[%emt 0:03:22]} 27. Rxc7 {[%emt 0:00:28]} Nd4 {[%emt 0:01:04]} 28. h4 {[%emt 0:01:06]} (28. Rxa7 Nxf3+ 29. gxf3 Bh3) 28... a5 {[%emt 0:01:23]} 29. Na6 {[%emt 0:00:29]} Nxf3+ {[%emt 0:04:24]} 30. gxf3 $11 {[%emt 0:00:09][%mdl 4096] Endgame. KRB-KRN} Rd5 {[%emt 0:03:02]} 31. Rc5 {[%emt 0:02:07]} Rd3 {[%emt 0:04:21][%csl LRa3,LRf3]} 32. Rxa5 {[%emt 0:00:19]} Rxf3 {[%emt 0:00:05]} 33. Nc7 {[%emt 0:00:23]} Bd7 {[%emt 0:07:04]} 34. Ra6 {[%emt 0:02:34]} Kg7 {[%emt 0:03:18]} 35. Rd6 {[%emt 0:01:11]} Ba4 {[%emt 0:02:14]} 36. e6 {[%emt 0:00:16]} Rc3 {[%emt 0:03:39]} (36... Rxa3 $11 {should be considered.} 37. Ra6 (37. e7 Ra1+ 38. Kg2 Re1 $16) 37... Rc3) 37. Nd5 $14 {[%emt 0:02:03]} Rc1+ {[%emt 0:00:06]} 38. Kh2 $1 {[%emt 0:00:28][%cal Od6d7] [#] Rd7! would now be deadly.} fxe6 {[%emt 0:00:39]} 39. Rxe6 {[%emt 0:00:23]} Bb3 {[%emt 0:02:47]} 40. Re7+ {[%emt 0:02:12]} Kf8 {[%emt 0:01:41]} 41. Rc7 {[%emt 0:35:12]} Rf1 {[%emt 0:09:03]} 42. Kg2 {[%emt 0:00:00]} Ra1 {[%emt 0:00:05]} 43. Nf6 {[%emt 0:00:00]} Rxa3 {[%emt 0:03:27]} 44. Nxh7+ {[%emt 0:00:00]} Kg8 {[%emt 0:00:54]} 45. Nf6+ {[%emt 0:00:00]} Kf8 {[%emt 0:00:04]} 46. Rc3 {[%emt 0:00:00] Black must now prevent Rf3.} Kg7 {[%emt 0:01:38]} 47. Ne4 {[%emt 0:00:00] Strongly threatening Rf3.} Ra4 $1 {[%emt 0:00:35]} 48. Rc7+ {[%emt 0:00:00]} Kf8 {[%emt 0:00:50]} 49. Nc5 {[%emt 0:00:00]} Rb4 {[%emt 0:02:37]} 50. Kg3 {[%emt 0:00:00]} Kg8 {[%emt 0:03:27]} 51. Nd3 {[%emt 0:00:00]} Rb5 {[%emt 0:01:11]} 52. Rc5 {[%emt 0:00:00]} Rxc5 {[%emt 0:00:26]} 53. Nxc5 $11 {[%emt 0:00:00] KB-KN} Bc2 {[%emt 0:00:22]} 54. Kf4 {[%emt 0:00:12]} Kg7 {[%emt 0:00:55]} 55. Kg5 {[%emt 0:00:06]} Bb1 {[%emt 0:00:17]} 56. Ne6+ {[%emt 0:00:14]} Kf7 {[%emt 0:00:06]} 57. Nd4 {[%emt 0:00:11]} Kg7 {[%emt 0:00:12]} 58. Nc6 {[%emt 0:00:09]} Be4 {[%emt 0:00:24]} 59. Ne5 {[%emt 0:00:08]} Bb1 {[%emt 0:00:05]} 60. Ng4 {[%emt 0:00:09]} Bc2 {[%emt 0:00:26]} 61. Kf4 {[%emt 0:00:34]} Bd1 {[%emt 0:01:02]} 62. Ne3 {[%emt 0:00:27]} Be2 {[%emt 0:00:14]} 63. Kg5 {[%emt 0:03:45]} Bd3 {[%emt 0:00:12]} 64. Ng2 {[%emt 0:00:06]} Be4 {[%emt 0:00:13]} 65. Nf4 {[%emt 0:00:10]} Bb1 {[%emt 0:00:06]} 66. Ne2 {[%emt 0:01:55]} Bd3 {[%emt 0:00:56]} 67. Ng3 {[%emt 0:00:10]} Bb1 {[%emt 0:00:19]} 68. Nf1 {[%emt 0:02:32]} Bd3 {[%emt 0:00:09]} 69. Nd2 {[%emt 0:00:37]} Bc2 {[%emt 0:00:07]} 70. Nc4 {[%emt 0:01:16]} Bd3 {[%emt 0:00:14]} 71. Ne5 {[%emt 0:00:19]} Bb1 {[%emt 0:00:06]} 72. Ng4 {[%emt 0:01:23]} Bc2 {[%emt 0:00:20]} 73. Kf4 {[%emt 0:02:09]} Bd1 {[%emt 0:00:09]} 74. Kg3 {[%emt 0:00:07]} Bc2 {[%emt 0:00:15]} 75. Kf3 {[%emt 0:00:16]} Bd1+ {[%emt 0:00:35]} 76. Kf4 {[%emt 0:00:11]} Be2 {[%emt 0:00:37]} 77. Kg5 {[%emt 0:01:52] White threatens Ne5 and mate.} Bd3 {[%emt 0:01:06]} 78. Nf6 {[%emt 0:00:36]} Bb1 {[%emt 0:00:25]} 79. Ne8+ {[%emt 0:00:13]} Kf7 {[%emt 0:00:06]} 80. Nc7 {[%emt 0:00:07]} Kg7 {[%emt 0:00:12]} 81. Na6 {[%emt 0:00:49]} Bd3 {[%emt 0:00:21]} 82. Nb4 {[%emt 0:00:10]} Bb1 {[%emt 0:00:23]} 83. f3 {[%emt 0:00:32]} Kh7 {[%emt 0:01:03]} 84. Nd5 {[%emt 0:01:24]} Kg7 {[%emt 0:00:12]} 85. Nf4 {[%emt 0:00:04]} Bc2 {[%emt 0:00:51]} 86. Ng2 {[%emt 0:00:06]} Bb1 {[%emt 0:00:27]} 87. Ne1 {[%emt 0:00:06]} Ba2 {[%emt 0:00:22]} 88. Nd3 {[%emt 0:01:27]} Bb1 {[%emt 0:00:11]} 89. Nc5 {[%emt 0:00:03]} Bc2 {[%emt 0:00:19]} 90. Ne6+ {[%emt 0:00:05]} Kf7 {[%emt 0:00:20]} 91. Nd4 {[%emt 0:00:05]} Bb1 {[%emt 0:00:25]} 92. Kf4 {[%emt 0:00:47]} Kf6 {[%emt 0:00:27]} 93. Ne2 {[%emt 0:00:15]} Bc2 {[%emt 0:00:34]} 94. Ng3 {[%emt 0:00:06]} Bd1 {[%emt 0:00:43]} 95. Nh1 {[%emt 0:01:42]} g5+ {[%emt 0:03:32] The position is equal.} 96. hxg5+ {[%emt 0:00:05]} Kg6 {[%emt 0:00:03]} 97. Ng3 {[%emt 0:00:41]} Bxf3 $1 {[%emt 0:00:06]} 98. Nf5 {[%emt 0:00:03] Intending Nh4+ and mate.} Bd1 {[%emt 0:01:30]} 99. Nh4+ {[%emt 0:00:17]} Kg7 {[%emt 0:01:25]} 100. Nf5+ {[%emt 0:00:05]} Kg6 {[%emt 0:00:10]} 101. Nh4+ {[%emt 0:00:02]} Kg7 {[%emt 0:00:27]} 102. Nf5+ {[%emt 0:00:03] Weighted Error Value: White=0.04 (flawless) /Black=0.04 (flawless) .  Mistake:       	---       	Black=1      Inaccurate:     	White=3     	Black=1      OK:         	White=20    	Black=49     Best:        	White=7     	Black=12     Strong:       	White=1     	Black=2} 1/2-1/2

[Event "45th FIDE Olympiad 2024"]
[Site "Budapest"]
[Date "2024.09.16"]
[Round "6.55"]
[White "Mohamed, Ali Dima"]
[Black "Khoa, Goodwill"]
[Result "0-1"]
[WhiteElo "1761"]
[BlackElo "1890"]
[PlyCount "60"]
[EventDate "2024.09.05"]
[EventType "team-tourn"]
[EventCountry "HUN"]
[WhiteTeam "Djibouti"]
[BlackTeam "Namibia"]
[WhiteTeamCountry "DJI"]
[BlackTeamCountry "NAM"]
[TimeControl "40/5400+30:1800+30"]

1. d4 Nf6 2. c4 c5 3. e3 g6 4. Nc3 Bg7 5. Be2 cxd4 6. exd4 d5 7. b3 O-O 8. Nf3 Nc6 9. O-O dxc4 10. bxc4 Bg4 11. Be3 Qa5 12. Qb3 Rab8 13. h3 Bxf3 14. Bxf3 e5 15. d5 Nd4 16. Bxd4 exd4 17. Nb5 a6 18. Nxd4 Nxd5 19. cxd5 Bxd4 20. Rad1 Bf6 21. Rfe1 Rfd8 22. d6 Rxd6 23. g3 Rbd8 24. Rc1 b5 25. Re4 Rd3 26. Qc2 Rxf3 27. Qc6 Kg7 28. Re6 Qd2 29. Rxf6 Rxf6 30. Qc5 Rxf2 {0-} 0-1